fUSD/lending_fUSD_20251130
["ID","MTS","AMOUNT","RATE_DAILY","PERIOD"]
[395132672,1764463839308,-500.0,0.00013949,2]
[395132674,1764463839319,-500.0,0.00013949,2]
[395132675,1764463839328,-500.0,0.00013949,2]
[395132676,1764463839338,-500.0,0.00013949,2]
[395132677,1764463839347,-500.0,0.00013949,2]
[395132678,1764463839356,-500.0,0.00013949,2]
[395132679,1764463839366,-500.0,0.00013949,2]
[395132680,1764463839375,-500.0,0.00013949,2]
[395132681,1764463839385,-500.0,0.00013949,2]
[395132682,1764463839394,-500.0,0.00013949,2]
[395132683,1764463839404,-500.0,0.00013949,2]
[395132684,1764463839413,-310.52351775,0.00013949,2]
[395132685,1764463839424,-532.59359614,0.00013949,2]
[395132686,1764463839433,-1553.0,0.00013952,2]
[395132687,1764463839443,-1269.0,0.0001398,2]
[395132688,1764463839452,-208.7124507,0.00013986,2]
[395132689,1764463839462,-150.0,0.00013986,2]
[395132690,1764463839471,-600.0,0.00013986,2]
[395132691,1764463839485,-150.0,0.00013986,2]
[395132692,1764463839495,-150.0,0.00013986,2]
[395132693,1764463839504,-200.0,0.00013989,2]
[395132694,1764463839514,-1758.0,0.00014008,2]
[395132695,1764463839524,-24525.82864805,0.00014011,2]
[395132696,1764463839534,-500.0,0.00014022,2]
[395132697,1764463839544,-500.0,0.00014022,2]
[395132698,1764463839560,-500.0,0.00014022,2]
[395132699,1764463839572,-803.0,0.00014024,2]
[395132700,1764463839586,-150.0,0.00014024,2]
[395132701,1764463839596,-500.0,0.00014024,2]
[395132702,1764463839605,-500.0,0.00014024,2]
[395132703,1764463839614,-500.0,0.00014024,2]
[395132704,1764463839623,-500.0,0.00014024,2]
[395132705,1764463839632,-500.0,0.00014024,2]
[395132706,1764463839641,-1382.0,0.00014035,2]
[395132707,1764463839651,-220.47585405,0.00014047,2]
[395132708,1764463839661,-500.0,0.00014056,2]
[395132709,1764463840093,-500.0,0.00014056,2]
[395132710,1764463840102,-129216.22270557,0.00014057,2]
[395132711,1764463840112,-1405.0,0.00014063,2]
[395132712,1764463840120,-1687.0,0.00014091,2]
[395132713,1764463840130,-1513.25,0.00014116,2]
[395132714,1764463840139,-500.0,0.00014119,2]
[395132715,1764463840148,-207.71038414,0.00014123,2]
[395132716,1764463840156,-150.0,0.00014123,2]
[395132717,1764463840165,-150.0,0.00014123,2]
[395132718,1764463840174,-200.0,0.00014128,2]
[395132719,1764463840183,-519.26948346,0.00014141,2]
[395132720,1764463840192,-500.0,0.00014141,2]
[395132721,1764463840201,-500.0,0.00014141,2]
[395132722,1764463840210,-500.0,0.00014141,2]
[395132723,1764463840218,-500.0,0.00014141,2]
[395132724,1764463840228,-500.0,0.00014141,2]
[395132725,1764463840238,-500.0,0.00014141,2]
[395132726,1764463840246,-500.0,0.00014141,2]
[395132727,1764463840255,-500.0,0.00014147,2]
[395132728,1764463840265,-500.0,0.00014147,2]
[395132729,1764463840274,-672.0,0.00014147,2]
[395132730,1764463840283,-271.89568788,0.00014159,2]
[395132731,1764463840291,-500.0,0.00014159,2]
[395132732,1764463840300,-500.0,0.00014159,2]
[395132733,1764463840310,-803.0,0.00014161,2]
[395132734,1764463840319,-200.0,0.00014161,2]
[395132735,1764463840327,-500.0,0.00014161,2]
[395132736,1764463840337,-500.0,0.00014161,2]
[395132737,1764463840345,-150.0,0.00014161,2]
[395132738,1764463840354,-500.0,0.00014161,2]
[395132739,1764463840363,-300.0,0.00014161,2]
[395132740,1764463840373,-195.0,0.00014168,2]
[395132741,1764463840382,-250.0,0.00014168,2]
[395132742,1764463840391,-255.0,0.00014248,2]
[395132743,1764463840401,-166.66,0.00014255,2]
[395132744,1764463840410,-200.0,0.0001426,2]
[395132745,1764463840419,-200.0,0.0001426,2]
[395132746,1764463840429,-200.0,0.0001427,2]
[395132747,1764463840438,-963.01004919,0.00014275,2]
[395132748,1764463840448,-250.0,0.00014278,2]
[395132749,1764463840458,-500.0,0.00014296,2]
[395132750,1764463840467,-500.0,0.00014296,2]
[395132751,1764463840478,-803.0,0.00014298,2]
[395132752,1764463840489,-500.0,0.00014298,2]
[395132753,1764463840498,-500.0,0.00014298,2]
[395132754,1764463840507,-500.0,0.00014298,2]
[395132755,1764463840517,-195.0,0.00014299,2]
[395132756,1764463840526,-195.0,0.00014334,2]
[395132757,1764463840536,-284.20898428,0.00014335,2]
[395132759,1764463840545,-24525.82864805,0.00014372,2]
[395132760,1764463840559,-200.0,0.0001439,2]
[395132761,1764463840568,-200.0,0.0001439,2]
[395132762,1764463840577,-500.0,0.0001439,2]
[395132763,1764463840586,-1513.25,0.0001439,2]
[395132764,1764463840595,-420.0,0.00014413,2]
[395132765,1764463840605,-500.0,0.00014433,2]
[395132766,1764463840614,-500.0,0.00014433,2]
[395132767,1764463840628,-3048.43577287,0.00014433,2]
[395132768,1764463840643,-803.0,0.00014435,2]
[395132769,1764463840652,-500.0,0.00014435,2]
[395132770,1764463840661,-500.0,0.00014435,2]
[395132772,1764463840670,-500.0,0.00014435,2]
[395132773,1764463840679,-195.0,0.00014458,2]
[395132775,1764463840688,-193.0,0.00014458,2]
[395132776,1764463840697,-1000.0,0.0001449,2]
[395132777,1764463840707,-5003.9,0.00014504,2]
[395132778,1764463840716,-4130.57,0.00014504,2]
[395132779,1764463840725,-8159.14,0.00014504,2]
[395132780,1764463840734,-151.0,0.00014521,2]
[395132781,1764463840743,-500.0,0.0001457,2]
[395132782,1764463840752,-803.0,0.00014572,2]
[395132783,1764463840761,-550.44152871,0.00014572,2]
[395132784,1764463840771,-500.0,0.00014572,2]
[395132785,1764463840780,-500.0,0.00014572,2]
[395132786,1764463840790,-1513.25,0.00014664,2]
[395132787,1764463840798,-483.77529537,0.00014667,2]
[395132788,1764463840808,-500.0,0.00014707,2]
[395132789,1764463840819,-803.0,0.00014709,2]
[395132790,1764463840831,-500.0,0.00014709,2]
[395132791,1764463840841,-500.0,0.00014709,2]
[395132792,1764463840851,-166.66,0.00014711,2]
[395132793,1764463840860,-24525.82864805,0.00014733,2]
[395132794,1764463840870,-963.01004919,0.000148,2]
[395132795,1764463840879,-500.0,0.00014844,2]
[395132796,1764463840888,-803.0,0.00014846,2]
[395132797,1764463840897,-500.0,0.00014846,2]
[395132798,1764463840906,-500.0,0.00014846,2]
[395132799,1764463840915,-500.0,0.00014867,2]
[395132800,1764463840924,-500.0,0.00014867,2]
[395132801,1764463840933,-160.38066801,0.00014867,2]
[395132802,1764463840943,-500.0,0.00014867,2]
[395132803,1764463840952,-500.0,0.00014867,2]
[395132804,1764463840962,-500.0,0.00014867,2]
[395132805,1764463840971,-500.0,0.00014867,2]
[395132806,1764463840980,-225.21969723,0.000149,2]
[395132807,1764463840990,-207.01462427,0.00014938,2]
[395132808,1764463840999,-200.0,0.00014938,2]
[395132809,1764463841009,-597.09424157,0.00014938,2]
[395132810,1764463841019,-1513.25,0.00014938,2]
[395132811,1764463841028,-420.0,0.00014958,2]
[395132812,1764463841037,-500.0,0.00014981,2]
[395132813,1764463841046,-803.0,0.00014983,2]
[395132814,1764463841055,-500.0,0.00014983,2]
[395132815,1764463841065,-500.0,0.00014983,2]
[395132816,1764463841074,-500.0,0.00014999,2]
[395132817,1764463841084,-1680.0,0.00015013,2]
[395132818,1764463841094,-195.0,0.00015014,2]
[395132819,1764463841103,-186.2305426,0.00015014,2]
[395132820,1764463841111,-300.0,0.00015014,2]
[395132821,1764463841120,-374.43492454,0.00015014,2]
[395132822,1764463841129,-150.32875877,0.00015014,2]
[395132823,1764463841138,-3313.0,0.00015068,2]
[395132824,1764463841147,-151.0,0.00015069,2]
[395132825,1764463841156,-24525.82864805,0.00015094,2]
[395132826,1764463841165,-500.0,0.00015118,2]
[395132827,1764463841174,-803.0,0.0001512,2]
[395132828,1764463841183,-500.0,0.0001512,2]
[395132829,1764463841192,-500.0,0.0001512,2]
[395132830,1764463841201,-166.66,0.00015166,2]
[395132831,1764463841210,-1513.25,0.00015212,2]
[395132832,1764463841219,-500.0,0.00015255,2]
[395132833,1764463841230,-803.0,0.00015257,2]
[395132834,1764463841241,-598.23367489,0.00015257,2]
[395132835,1764463841252,-500.0,0.00015257,2]
[395132836,1764463841262,-150.0,0.00015288,2]
[395132837,1764463841272,-150.0,0.00015288,2]
[395132838,1764463841281,-150.0,0.00015288,2]
[395132839,1764463841291,-150.0,0.00015288,2]
[395132840,1764463841302,-150.0,0.00015288,2]
[395132841,1764463841311,-150.0,0.00015288,2]
[395132842,1764463841320,-150.0,0.00015288,2]
[395132843,1764463841330,-150.0,0.00015288,2]
[395132844,1764463841341,-150.0,0.00015288,2]
[395132845,1764463841351,-150.0,0.00015288,2]
[395132846,1764463841360,-150.0,0.00015288,2]
[395132847,1764463841370,-150.0,0.00015288,2]
[395132848,1764463841380,-963.01004919,0.00015325,2]
[395132849,1764463841390,-150.0,0.00015388,2]
[395132850,1764463841399,-500.0,0.00015392,2]
[395132851,1764463841409,-803.0,0.00015394,2]
[395132852,1764463841418,-454.0,0.00015394,2]
[395132853,1764463841427,-150.0,0.00015409,2]
[395132854,1764463841437,-433.0,0.00015444,2]
[395132855,1764463841446,-24525.82864805,0.00015456,2]
[395132856,1764463841456,-150.0,0.00015458,2]
[395132857,1764463841465,-150.0,0.00015458,2]
[395132858,1764463841475,-10355.8483361,0.00015463,2]
[395132859,1764463841489,-150.0,0.00015476,2]
[395132860,1764463841498,-200.0,0.00015486,2]
[395132861,1764463841507,-1513.25,0.00015486,2]
[395132862,1764463841519,-150.0,0.00015488,2]
[395132863,1764463841528,-150.0,0.000155,2]
[395132864,1764463841537,-542.0,0.00015529,2]
[395132865,1764463841546,-150.0,0.0001553,2]
[395132866,1764463841556,-803.0,0.00015531,2]
[395132867,1764463841565,-150.0,0.00015571,2]
[395132868,1764463841574,-150.0,0.00015587,2]
[395132869,1764463841583,-151.0,0.00015617,2]
[395132870,1764463841592,-166.66,0.00015622,2]
[395132871,1764463841601,-150.0,0.00015627,2]
[395132872,1764463841610,-150.0,0.00015627,2]
[395132873,1764463841619,-150.0,0.00015652,2]
[395132874,1764463841628,-150.0,0.00015665,2]
[395132875,1764463841637,-803.0,0.00015668,2]
[395132876,1764463841646,-150.0,0.00015687,2]
[395132877,1764463841655,-150.0,0.00015712,2]
[395132878,1764463841664,-1513.25,0.0001576,2]
[395132879,1764463841673,-150.0,0.00015773,2]
[395132880,1764463841683,-150.0,0.00015787,2]
[395132881,1764463841692,-150.0,0.00015797,2]
[395132882,1764463841700,-150.0,0.00015797,2]
[395132883,1764463841709,-587.0,0.00015804,2]
[395132884,1764463841718,-803.0,0.00015805,2]
[395132885,1764463841727,-151.0,0.00015814,2]
[395132886,1764463841736,-24525.82864805,0.00015817,2]
[395132887,1764463841745,-963.01004919,0.0001585,2]
[395132888,1764463841755,-150.0,0.00015854,2]
[395132889,1764463841764,-150.0,0.00015854,2]
[395132890,1764463841773,-150.0,0.00015854,2]
[395132891,1764463841783,-150.0,0.00015854,2]
[395132892,1764463841791,-150.0,0.00015887,2]
[395132893,1764463841800,-150.0,0.00015894,2]
[395132894,1764463841809,-6166.70429545,0.000159,2]
[395132895,1764463841819,-150.0,0.00015925,2]
[395132896,1764463841830,-803.0,0.00015942,2]
[395132897,1764463841839,-150.0,0.00015967,2]
[395132898,1764463841848,-150.0,0.00015967,2]
[395132899,1764463841857,-500.0,0.00015972,2]
[395132900,1764463841867,-500.0,0.00015972,2]
[395132901,1764463841878,-502.60400669,0.00015973,2]
[395132902,1764463841887,-504.164248,0.00015973,2]
[395132903,1764463841896,-500.71814226,0.00015973,2]
[395132904,1764463841907,-545.6682471,0.00015973,2]
[395132905,1764463841916,-500.0,0.00015973,2]
[395132906,1764463841924,-500.0,0.00015973,2]
[395132907,1764463841934,-165.0616945,0.00015973,2]
[395132908,1764463841943,-159.99691032,0.00015973,2]
[395132909,1764463841952,-500.0,0.00015973,2]
[395132910,1764463841962,-160.04884112,0.00015973,2]
[395132911,1764463841971,-500.0,0.00015973,2]
[395132912,1764463841980,-168.80860309,0.00015973,2]
[395132913,1764463841989,-500.0,0.00015973,2]
[395132914,1764463841998,-500.0,0.00015973,2]
[395132915,1764463842008,-500.0,0.00015973,2]
[395132916,1764463842017,-176.16235425,0.00015973,2]
[395132917,1764463842026,-500.0,0.00015973,2]
[395132918,1764463842036,-500.0,0.00015973,2]
[395132919,1764463842045,-500.0,0.00015973,2]
[395132920,1764463842055,-201.08259325,0.00015973,2]
[395132921,1764463842065,-622.41255856,0.00015973,2]
[395132922,1764463842074,-315.71495663,0.00015973,2]
[395132923,1764463842084,-500.0,0.00015973,2]
[395132924,1764463842092,-500.0,0.00015973,2]
[395132925,1764463842101,-500.0,0.00015973,2]
[395132926,1764463842110,-500.33790784,0.00015973,2]
[395132927,1764463842119,-500.0,0.00015973,2]
[395132928,1764463842128,-500.0,0.00015973,2]
[395132929,1764463842137,-500.0,0.00015973,2]
[395132930,1764463842148,-500.0,0.00015973,2]
[395132931,1764463842157,-500.0,0.00015973,2]
[395132932,1764463842165,-500.0,0.00015973,2]
[395132933,1764463842176,-500.0,0.00015973,2]
[395132934,1764463842185,-215.65703164,0.00015973,2]
[395132935,1764463842194,-150.0,0.00015987,2]
[395132936,1764463842203,-550.0,0.00015999,2]
[395132937,1764463842212,-150.0,0.00016016,2]
[395132938,1764463842221,-200.0,0.00016034,2]
[395132939,1764463842230,-1513.25,0.00016034,2]
[395132940,1764463842239,-150.0,0.00016043,2]
[395132941,1764463842248,-166.66,0.00016078,2]
[395132942,1764463842257,-803.0,0.00016079,2]
[395132944,1764463842266,-150.0,0.00016087,2]
[395132945,1764463842279,-1000.0,0.000161,2]
[395132946,1764463842288,-150.0,0.00016137,2]
[395132947,1764463842297,-150.0,0.00016137,2]
[395132948,1764463842307,-150.0,0.00016137,2]
[395132949,1764463842316,-150.0,0.00016137,2]
[395132950,1764463842325,-150.0,0.00016137,2]
[395132951,1764463842335,-151.0,0.00016165,2]
[395132952,1764463842344,-249.97801119,0.00016166,2]
[395132953,1764463842354,-24525.82864805,0.00016178,2]
[395132954,1764463842364,-150.0,0.00016187,2]
[395132955,1764463842373,-803.0,0.00016216,2]
[395132956,1764463842382,-150.0,0.00016231,2]
[395132957,1764463842392,-150.0,0.00016258,2]
[395132958,1764463842401,-150.0,0.00016287,2]
[395132959,1764463842410,-150.0,0.00016307,2]
[395132960,1764463842419,-150.0,0.00016307,2]
[395132961,1764463842428,-1513.25,0.00016308,2]
[395132962,1764463842438,-150.0,0.00016349,2]
[395132963,1764463842447,-803.0,0.00016353,2]
[395132964,1764463842456,-963.01004919,0.00016375,2]
[395132965,1764463842466,-150.0,0.0001638,2]
[395132966,1764463842476,-150.0,0.00016387,2]
[395132967,1764463842488,-587.0,0.00016393,2]
[395132968,1764463842498,-250.0,0.00016393,2]
[395132969,1764463842507,-150.0,0.0001642,2]
[395132970,1764463842516,-150.0,0.0001642,2]
[395132971,1764463842526,-150.0,0.0001642,2]
[395132972,1764463842535,-150.0,0.0001642,2]
[395132973,1764463842545,-150.0,0.00016438,2]
[395132974,1764463842555,-150.0,0.00016438,2]
[395132975,1764463842565,-800.0,0.00016438,2]
[395132976,1764463842574,-150.0,0.00016477,2]
[395132977,1764463842583,-150.0,0.00016477,2]
[395132978,1764463842591,-150.0,0.00016487,2]
[395132979,1764463842601,-803.0,0.0001649,2]
[395132980,1764463842610,-150.0,0.00016501,2]
[395132981,1764463842619,-2351.0,0.00016514,2]
[395132982,1764463842629,-154.18165703,0.00016519,2]
[395132983,1764463842638,-500.0,0.00016519,2]
[395132984,1764463842647,-500.0,0.00016519,2]
[395132985,1764463842656,-500.0,0.00016519,2]
[395132986,1764463842664,-1000.0,0.00016521,2]
[395132987,1764463842674,-1000.0,0.00016521,2]
[395132988,1764463842683,-1000.0,0.00016521,2]
[395132989,1764463842691,-1000.0,0.00016521,2]
[395132990,1764463842700,-915.8000054,0.00016521,2]
[395132991,1764463842709,-500.79206791,0.00016521,2]
[395132992,1764463842718,-1000.0,0.00016521,2]
[395132993,1764463842727,-1000.0,0.00016521,2]
[395132994,1764463842736,-500.0,0.00016521,2]
[395132995,1764463842745,-1000.0,0.00016521,2]
[395132996,1764463842754,-494.11980425,0.00016521,2]
[395132997,1764463842763,-500.0,0.00016521,2]
[395132998,1764463842772,-1017.62515895,0.00016521,2]
[395132999,1764463842781,-501.65327585,0.00016521,2]
[395133000,1764463842790,-360.05947122,0.00016521,2]
[395133001,1764463842799,-1000.0,0.00016521,2]
[395133002,1764463842808,-1000.0,0.00016521,2]
[395133003,1764463842817,-24525.82864805,0.00016539,2]
[395133004,1764463842826,-150.0,0.00016562,2]
[395133005,1764463842838,-150.0,0.00016575,2]
[395133006,1764463842847,-150.0,0.00016575,2]
[395133007,1764463842856,-207.4,0.00016581,2]
[395133008,1764463842865,-200.0,0.00016582,2]
[395133009,1764463842874,-1513.25,0.00016582,2]
[395133010,1764463842883,-150.0,0.00016587,2]
[395133011,1764463842893,-150.0,0.00016609,2]
[395133012,1764463842902,-150.0,0.00016622,2]
[395133013,1764463842911,-803.0,0.00016627,2]
[395133014,1764463842920,-150.0,0.00016647,2]
[395133015,1764463842929,-150.0,0.00016647,2]
[395133016,1764463842938,-371.99662499,0.0001666,2]
[395133017,1764463842947,-150.0,0.00016687,2]
[395133018,1764463842956,-150.0,0.00016703,2]
[395133019,1764463842966,-297.66,0.00016711,2]
[395133021,1764463842975,-178.73243855,0.00016712,2]
[395133022,1764463842984,-150.0,0.00016712,2]
[395133023,1764463842994,-236.25863551,0.00016713,2]
[395133024,1764463843004,-150.0,0.00016744,2]
[395133025,1764463843014,-736.0,0.00016746,2]
[395133026,1764463843023,-803.0,0.00016764,2]
[395133027,1764463843032,-150.0,0.00016774,2]
[395133028,1764463843042,-150.0,0.00016786,2]
[395133029,1764463843052,-150.0,0.00016798,2]
[395133030,1764463843060,-150.0,0.00016816,2]
[395133031,1764463843069,-150.0,0.00016816,2]
[395133032,1764463843079,-150.0,0.00016849,2]
[395133033,1764463843088,-1513.27,0.00016856,2]
[395133034,1764463843097,-200.0,0.00016864,2]
[395133035,1764463843107,-150.0,0.00016865,2]
[395133036,1764463843116,-1053.86383915,0.00016869,2]
[395133037,1764463843125,-191.37909284,0.00016873,2]
[395133038,1764463843136,-1053.86383912,0.00016875,2]
[395133039,1764463843146,-1053.86383912,0.00016881,2]
[395133040,1764463843155,-150.0,0.00016886,2]
[395133041,1764463843164,-1053.86383912,0.00016888,2]
[395133042,1764463843175,-1053.86383912,0.00016894,2]
[395133043,1764463843185,-10000.0,0.000169,2]
[395133044,1764463843196,-24525.82864805,0.000169,2]
[395133045,1764463843205,-963.01004919,0.000169,2]
[395133046,1764463843216,-550.79745506,0.000169,2]
[395133047,1764463843225,-1053.86383912,0.000169,2]
[395133048,1764463843236,-1321.15353422,0.000169,2]
[395133049,1764463843247,-500.0,0.000169,2]
[395133050,1764463843256,-500.0,0.000169,2]
[395133051,1764463843265,-500.0,0.000169,2]
[395133052,1764463843274,-500.0,0.000169,2]
[395133053,1764463843283,-500.0,0.000169,2]
[395133054,1764463843292,-500.0,0.000169,2]
[395133055,1764463843303,-500.0,0.000169,2]
[395133056,1764463843314,-500.0,0.000169,2]
[395133057,1764463843324,-500.0,0.000169,2]
[395133058,1764463843333,-500.0,0.000169,2]
[395133059,1764463843342,-500.0,0.000169,2]
[395133060,1764463843352,-500.0,0.000169,2]
[395133061,1764463843362,-500.0,0.000169,2]
[395133062,1764463843371,-500.0,0.000169,2]
[395133063,1764463843381,-500.0,0.000169,2]
[395133064,1764463843390,-500.0,0.000169,2]
[395133065,1764463843401,-192.37994214,0.000169,2]
[395133066,1764463843411,-821.47837896,0.00016901,2]
[395133067,1764463843420,-250.0,0.0001691,2]
[395133068,1764463843430,-250.0,0.0001691,2]
[395133069,1764463843439,-250.0,0.0001691,2]
[395133070,1764463843448,-250.0,0.0001691,2]
[395133071,1764463843458,-250.0,0.0001691,2]
[395133072,1764463843468,-250.0,0.0001691,2]
[395133073,1764463843479,-250.0,0.0001691,2]
[395133074,1764463843492,-250.0,0.0001691,2]
[395133075,1764463843502,-250.0,0.0001691,2]
[395133076,1764463843511,-250.0,0.0001691,2]
[395133077,1764463843522,-250.0,0.0001691,2]
[395133078,1764463843531,-250.0,0.0001691,2]
[395133079,1764463843542,-1226.0,0.00016959,2]
[395133080,1764463843552,-500.0,0.00016966,2]
[395133081,1764463843565,-918146.7182792,0.00016967,2]
[395133082,1764463843575,-1496.79096699,0.00016969,2]
[395133083,1764463843585,-500.0,0.00016973,2]
[395133084,1764463843594,-500.0,0.00016973,2]
[395133085,1764463843603,-161.98179923,0.00016973,2]
[395133086,1764463843614,-501.68270719,0.00016973,2]
[395133087,1764463843623,-366.12430531,0.00016973,2]
[395133088,1764463843632,-507.05784267,0.00016973,2]
[395133089,1764463843645,-500.0,0.00016973,2]
[395133090,1764463843655,-500.0,0.00016973,2]
[395133091,1764463843664,-500.0,0.00016973,2]
[395133092,1764463843674,-500.0,0.00016973,2]
[395133093,1764463843683,-500.0,0.00016973,2]
[395133094,1764463843693,-500.0,0.00016973,2]
[395133095,1764463843702,-500.0,0.00016973,2]
[395133096,1764463843712,-176.33851761,0.00016973,2]
[395133097,1764463843722,-500.0,0.00016973,2]
[395133098,1764463843731,-500.0,0.00016973,2]
[395133099,1764463843742,-500.0,0.00016973,2]
[395133100,1764463843751,-500.0,0.00016973,2]
[395133101,1764463843760,-415.30385931,0.00016973,2]
[395133102,1764463843770,-500.0,0.00016973,2]
[395133103,1764463843780,-500.0,0.00016973,2]
[395133104,1764463843789,-500.0,0.00016973,2]
[395133105,1764463843799,-500.0,0.00016973,2]
[395133106,1764463843811,-500.0,0.00016973,2]
[395133107,1764463843821,-500.0,0.00016973,2]
[395133108,1764463843831,-500.0,0.00016973,2]
[395133109,1764463843840,-500.0,0.00016973,2]
[395133110,1764463843849,-500.0,0.00016973,2]
[395133111,1764463843859,-281.67573932,0.00016973,2]
[395133112,1764463843868,-500.0,0.00016973,2]
[395133113,1764463843877,-500.0,0.00016973,2]
[395133114,1764463843887,-500.0,0.00016973,2]
[395133115,1764463843896,-500.0,0.00016973,2]
[395133116,1764463843905,-215.63945955,0.00016973,2]
[395133117,1764463843915,-500.0,0.00016973,2]
[395133118,1764463843924,-500.0,0.00016973,2]
[395133119,1764463843933,-200.0,0.00016986,2]
[395133120,1764463843943,-200.0,0.00016986,2]
[395133121,1764463843953,-290.89220527,0.00016986,2]
[395133122,1764463843962,-157.95425099,0.00016986,2]
[395133123,1764463843972,-159.50313578,0.00016986,2]
[395133124,1764463843982,-234.7761638,0.00016986,2]
[395133125,1764463843992,-150.0,0.00016986,2]
[395133126,1764463844001,-150.00000001,0.00016986,2]
[395133127,1764463844010,-150.00000001,0.00016986,2]
[395133128,1764463844019,-150.0,0.00016986,2]
[395133129,1764463844028,-239.8861884,0.00016986,2]
[395133130,1764463844309,-220.47585405,0.0001699,2]
[395133131,1764463844321,-151.0,0.00016997,2]
[395133132,1764463844331,-500.0,0.00016999,2]
[395133133,1764463844340,-500.0,0.00016999,2]
[395133134,1764463844350,-500.0,0.00016999,2]
[395133135,1764463844360,-500.0,0.00016999,2]
[395133136,1764463844369,-297.64259009,0.00016999,2]
[395133137,1764463844378,-300.0,0.00016999,2]
[395133138,1764463844387,-300.0,0.00016999,2]
[395133139,1764463844396,-5783287.99509495,0.00017,2]
[395133141,1764463845613,-500.0,0.00015973,2]
[395133142,1764463845623,-193.03771092,0.00015973,2]
[395133143,1764463845632,-1000.0,0.00016521,2]
[395133144,1764463845642,-217.70136136,0.00016808,2]
[395133145,1764463845651,-500.0,0.00016973,2]
[395133146,1764463845661,-65874.22674788,0.00017,2]
[395133147,1764463845670,-7011.82626609,0.00017,2]
[395133148,1764463845679,-1807462.93778452,0.00017,2]
[395133150,1764463846593,-1.7e-07,0.00017,2]
[395133151,1764463846604,-550.875007,0.00017,2]
[395133152,1764463846988,-288.0,0.00013969,2]
[395133153,1764463847015,-811.0,0.00013997,2]
[395133154,1764463847041,-406.0,0.00014025,2]
[395133155,1764463847229,-500.0,0.00015973,2]
[395133156,1764463847238,-190.39881849,0.00016521,2]
[395133157,1764463847383,1436.8259,0.0001365,2]
[395133158,1764463847530,-406.0,0.00014353,2]
[395133159,1764463847539,-221.47519175,0.00014381,2]
[395133160,1764463847548,-809.60118151,0.00016521,2]
[395133161,1764463847557,-500.0,0.00016973,2]
[395133162,1764463847568,-500.0,0.00016973,2]
[395133163,1764463847577,-182249.25315092,0.00017,2]
[395133164,1764463847587,-380.94149454,0.00017,2]
[395133165,1764463850113,5553.1841,0.0001365,2]
[395133166,1764463856472,-1522.0,0.0001365,2]
[395133168,1764463894496,-196.42370851,0.00013648,2]
[395133169,1764463894523,-500.0,0.00013648,2]
[395133170,1764463894549,-112.54326574,0.00013648,2]
[395133171,1764463925545,-387.45673426,0.00013648,2]
[395133172,1764463925570,-96.56587226,0.00013648,2]
[395133173,1764463940642,-250.0,0.00013649,2]
[395133174,1764463940667,-250.0,0.0001365,2]
[395133175,1764463940725,744.587096,0.00013579,2]
[395133176,1764463944857,-424.27429584,0.0001365,2]
[395133177,1764463948451,-278.92725152,0.0001365,2]
[395133178,1764463953424,-255.92714014,0.00013649,2]
[395133179,1764463956562,-44.07285986,0.00013649,2]
[395133180,1764463956621,-9167.27718428,0.0001365,2]